fUSD/lending_fUSD_20240927
["ID","MTS","AMOUNT","RATE_DAILY","PERIOD"]
[339288520,1727439057359,-818.86,0.0001189,2]
[339288521,1727439057369,-818.86,0.0001189,2]
[339288522,1727439057378,-1190.96,0.0001189,2]
[339288523,1727439057388,-500.0,0.0001189,2]
[339288524,1727439057398,-500.0,0.0001189,2]
[339288525,1727439057408,-500.0,0.0001189,2]
[339288526,1727439057419,-500.39863762,0.0001189,2]
[339288527,1727439057429,-500.0,0.0001189,2]
[339288528,1727439057439,-500.0,0.0001189,2]
[339288529,1727439057448,-500.0,0.0001189,2]
[339288530,1727439057459,-4266.44,0.0001189,2]
[339288531,1727439057469,-500.0,0.0001189,2]
[339288532,1727439057479,-4266.44,0.0001189,2]
[339288533,1727439057491,-755.08,0.0001189,2]
[339288534,1727439057500,-500.0,0.0001189,2]
[339288535,1727439057509,-222.4297709,0.0001189,2]
[339288536,1727439057518,-500.0,0.0001189,2]
[339288537,1727439057529,-500.0,0.0001189,2]
[339288538,1727439057538,-500.0,0.0001189,2]
[339288539,1727439057547,-843.42,0.0001189,2]
[339288540,1727439057558,-843.42,0.0001189,2]
[339288541,1727439057570,-500.0,0.0001189,2]
[339288542,1727439057582,-500.0,0.0001189,2]
[339288543,1727439057591,-500.0,0.0001189,2]
[339288544,1727439057602,-500.0,0.0001189,2]
[339288545,1727439057612,-500.0,0.0001189,2]
[339288546,1727439057621,-2098.45,0.0001189,2]
[339288547,1727439057632,-2098.45,0.0001189,2]
[339288548,1727439057644,-424.90926122,0.0001189,2]
[339288549,1727439076547,489.09,9.067e-05,2]
[339288550,1727439085152,1000.0,0.00010926,2]
[339288551,1727439430423,250.0,0.00010926,2]
[339288552,1727439447514,157.9,0.00010926,2]
[339288556,1727439654889,464.63,9.034e-05,2]
[339288557,1727439657326,200.0,0.00010969,2]
[339288559,1727439878508,150.0,0.00011106,2]
[339288562,1727439990452,1050.0,0.00011,2]
[339288564,1727439994128,250.0,0.00010903,2]
[339288591,1727440061803,156.0,0.00011106,2]
[339288668,1727440180301,840.0,0.00010908,2]
[339288677,1727440231850,-500.0,0.00011164,2]
[339288678,1727440231863,-1.95791481,0.00011164,2]
[339288704,1727440237824,-498.04208519,0.00011164,2]
[339288705,1727440237835,-500.0,0.00011164,2]
[339288706,1727440237846,-254.99791481,0.00011298,2]
[339288707,1727440237977,-209.63208519,0.00011298,2]
[339288708,1727440237988,-1153.3978942,0.00011788,2]
[339288709,1727440238109,-33.3006058,0.00011788,2]
[339288710,1727440238123,-313.68845188,0.00011789,2]
[339288711,1727440238135,-333.42672384,0.0001179,2]
[339288712,1727440238149,-333.42672382,0.00011797,2]
[339288713,1727440238160,-12738.0453673,0.000118,2]
[339288714,1727440238170,-333.42672382,0.00011803,2]
[339288715,1727440238182,-181.70699584,0.00011803,2]
[339288716,1727440238192,-500.0,0.00011804,2]
[339288717,1727440238203,-500.0,0.00011873,2]
[339288718,1727440238215,-310.796,0.00011873,2]
[339288719,1727440238226,-500.0,0.00011887,2]
[339288720,1727440238238,-500.0,0.00011887,2]
[339288721,1727440238736,-339.46,0.00011887,2]
[339288722,1727440238761,-709.37,0.00011887,2]
[339288723,1727440238771,-500.0,0.00011887,2]
[339288724,1727440238781,-500.0,0.00011887,2]
[339288725,1727440238791,-500.0,0.00011887,2]
[339288726,1727440238800,-773.27,0.00011887,2]
[339288727,1727440238809,-500.0,0.00011887,2]
[339288728,1727440238819,-776.31,0.00011887,2]
[339288729,1727440238828,-1817.18,0.00011887,2]
[339288730,1727440238839,-500.0,0.00011887,2]
[339288731,1727440238849,-588.85,0.00011887,2]
[339288732,1727440238859,-500.0,0.00011887,2]
[339288733,1727440238873,-500.0,0.00011887,2]
[339288734,1727440238883,-500.0,0.00011887,2]
[339288735,1727440238894,-500.0,0.00011887,2]
[339288736,1727440238904,-500.0,0.00011887,2]
[339288737,1727440238913,-500.0,0.00011887,2]
[339288738,1727440238923,-1492.81,0.00011887,2]
[339288739,1727440238932,-500.0,0.00011887,2]
[339288740,1727440238942,-500.0,0.00011887,2]
[339288741,1727440238953,-500.0,0.00011887,2]
[339288742,1727440238963,-500.0,0.00011887,2]
[339288743,1727440238972,-640.09,0.00011887,2]
[339288744,1727440238982,-500.0,0.00011887,2]
[339288745,1727440238991,-500.0,0.00011887,2]
[339288746,1727440239001,-617.99,0.00011887,2]
[339288747,1727440239011,-685.67,0.00011887,2]
[339288748,1727440239020,-685.67,0.00011887,2]
[339288749,1727440239029,-500.0,0.00011887,2]
[339288750,1727440239039,-723.47,0.00011887,2]
[339288751,1727440239048,-723.47,0.00011887,2]
[339288752,1727440239057,-500.0,0.00011887,2]
[339288753,1727440239066,-500.0,0.00011887,2]
[339288754,1727440239075,-500.0,0.00011887,2]
[339288755,1727440239084,-500.0,0.00011887,2]
[339288756,1727440239094,-500.0,0.00011887,2]
[339288757,1727440239103,-530.31,0.00011887,2]
[339288758,1727440239112,-530.31,0.00011887,2]
[339288759,1727440239123,-500.0,0.00011887,2]
[339288760,1727440239133,-500.0,0.00011887,2]
[339288761,1727440239144,-990.08,0.00011887,2]
[339288762,1727440239153,-990.08,0.00011887,2]
[339288763,1727440239163,-500.0,0.00011887,2]
[339288764,1727440239173,-500.0,0.00011887,2]
[339288765,1727440239183,-500.0,0.00011887,2]
[339288766,1727440239192,-500.0,0.00011887,2]
[339288767,1727440239202,-500.0,0.00011887,2]
[339288768,1727440239211,-537.2,0.00011887,2]
[339288769,1727440239222,-500.0,0.00011887,2]
[339288770,1727440239231,-500.0,0.00011887,2]
[339288771,1727440239241,-1123.22,0.00011887,2]
[339288772,1727440239251,-1123.22,0.00011887,2]
[339288773,1727440239261,-910.79,0.00011887,2]
[339288774,1727440239270,-910.79,0.00011887,2]
[339288775,1727440239280,-374.27488923,0.00011887,2]
[339288776,1727440239290,-500.0,0.00011887,2]
[339288777,1727440239299,-1812.22,0.00011887,2]
[339288778,1727440239310,-1812.22,0.00011887,2]
[339288779,1727440239319,-500.0,0.00011887,2]
[339288780,1727440239331,-500.0,0.00011887,2]
[339288781,1727440239341,-500.0,0.00011887,2]
[339288782,1727440239352,-557.3,0.00011887,2]
[339288783,1727440239362,-500.0,0.00011887,2]
[339288784,1727440239376,-500.0,0.00011887,2]
[339288785,1727440239385,-500.0,0.00011887,2]
[339288786,1727440239395,-500.0,0.00011887,2]
[339288787,1727440239405,-500.0,0.00011887,2]
[339288788,1727440239415,-500.0,0.00011887,2]
[339288789,1727440239425,-500.0,0.00011887,2]
[339288790,1727440239435,-537.15,0.00011887,2]
[339288791,1727440239445,-500.0,0.00011887,2]
[339288792,1727440239454,-500.0,0.00011887,2]
[339288793,1727440239464,-537.15,0.00011887,2]
[339288794,1727440239474,-500.0,0.00011887,2]
[339288796,1727440239483,-1285.5,0.00011887,2]
[339288797,1727440239493,-1285.5,0.00011887,2]
[339288798,1727440239503,-500.0,0.00011887,2]
[339288799,1727440239513,-500.0,0.00011887,2]
[339288800,1727440239523,-500.0,0.00011887,2]
[339288801,1727440239532,-655.89,0.00011887,2]
[339288802,1727440239542,-655.89,0.00011887,2]
[339288804,1727440239551,-500.0,0.00011887,2]
[339288806,1727440239561,-500.0,0.00011887,2]
[339288807,1727440239571,-910.57,0.00011887,2]
[339288808,1727440239581,-910.57,0.00011887,2]
[339288809,1727440239590,-524.67126244,0.00011887,2]
[339288810,1727440239600,-589.09,0.00011888,2]
[339288812,1727440239609,-500.0,0.00011888,2]
[339288814,1727440239618,-524.05,0.00011888,2]
[339288815,1727440239630,-500.67504815,0.00011888,2]
[339288816,1727440239640,-500.0,0.00011888,2]
[339288817,1727440239650,-500.0,0.00011888,2]
[339288818,1727440239659,-500.0,0.00011888,2]
[339288819,1727440239669,-584.24,0.00011888,2]
[339288820,1727440239678,-500.0,0.00011888,2]
[339288821,1727440239688,-500.0,0.00011888,2]
[339288822,1727440239697,-500.0,0.00011888,2]
[339288823,1727440239707,-500.0,0.00011888,2]
[339288824,1727440239717,-500.0,0.00011888,2]
[339288825,1727440239727,-500.0,0.00011888,2]
[339288826,1727440239736,-568.27,0.00011888,2]
[339288827,1727440239746,-500.0,0.00011888,2]
[339288828,1727440239755,-500.0,0.00011888,2]
[339288829,1727440239765,-500.0,0.00011888,2]
[339288830,1727440239774,-650.83,0.00011888,2]
[339288831,1727440239784,-500.0,0.00011888,2]
[339288832,1727440239794,-500.0,0.00011888,2]
[339288833,1727440239803,-500.0,0.00011888,2]
[339288834,1727440239813,-554.15,0.00011888,2]
[339288835,1727440239823,-1048.69,0.00011888,2]
[339288836,1727440239832,-500.0,0.00011888,2]
[339288837,1727440239842,-500.0,0.00011888,2]
[339288838,1727440239851,-654.1,0.00011888,2]
[339288839,1727440239860,-500.0,0.00011888,2]
[339288840,1727440239869,-500.0,0.00011888,2]
[339288841,1727440239880,-500.47198828,0.00011888,2]
[339288842,1727440239889,-500.0,0.00011888,2]
[339288843,1727440239898,-500.0,0.00011888,2]
[339288844,1727440239908,-500.0,0.00011888,2]
[339288845,1727440239917,-500.0,0.00011888,2]
[339288846,1727440239926,-500.0,0.00011888,2]
[339288847,1727440239935,-538.91,0.00011888,2]
[339288848,1727440239945,-500.0,0.00011888,2]
[339288849,1727440239955,-500.0,0.00011888,2]
[339288850,1727440239964,-500.0,0.00011888,2]
[339288851,1727440239974,-500.0,0.00011888,2]
[339288852,1727440239983,-500.0,0.00011888,2]
[339288853,1727440239992,-500.0,0.00011888,2]
[339288854,1727440240002,-619.75,0.00011888,2]
[339288855,1727440240011,-500.0,0.00011888,2]
[339288856,1727440240021,-500.0,0.00011888,2]
[339288857,1727440240030,-358.56465115,0.00011888,2]
[339288858,1727440240039,-500.0,0.00011888,2]
[339288859,1727440240048,-500.0,0.00011888,2]
[339288860,1727440240058,-500.0,0.00011888,2]
[339288861,1727440240068,-500.0,0.00011888,2]
[339288862,1727440240079,-610.51664355,0.00011888,2]
[339288863,1727440240090,-500.0,0.00011888,2]
[339288864,1727440240100,-316.85334931,0.00011888,2]
[339288865,1727440240109,-543.4,0.00011888,2]
[339288866,1727440240118,-839.45,0.00011888,2]
[339288867,1727440240129,-500.0,0.00011888,2]
[339288868,1727440240139,-500.0,0.00011888,2]
[339288869,1727440240150,-500.0,0.00011888,2]
[339288870,1727440240160,-500.0,0.00011888,2]
[339288872,1727440240170,-500.0,0.00011888,2]
[339288874,1727440240180,-500.0,0.00011888,2]
[339288876,1727440240190,-536.99,0.00011888,2]
[339288878,1727440240200,-663.85,0.00011888,2]
[339288880,1727440240209,-736.59,0.00011888,2]
[339288882,1727440240220,-771.86,0.00011888,2]
[339288884,1727440240230,-500.0,0.00011888,2]
[339288886,1727440240239,-500.0,0.00011888,2]
[339288888,1727440240248,-500.0,0.00011888,2]
[339288890,1727440240257,-783.01,0.00011888,2]
[339288892,1727440240267,-500.0,0.00011888,2]
[339288894,1727440240277,-500.0,0.00011888,2]
[339288896,1727440240286,-500.0,0.00011888,2]
[339288898,1727440240295,-1016.53,0.00011888,2]
[339288900,1727440240305,-1016.53,0.00011888,2]
[339288902,1727440240315,-500.0,0.00011888,2]
[339288904,1727440240325,-500.9,0.00011888,2]
[339288906,1727440240334,-1160.65,0.00011888,2]
[339288908,1727440240343,-1160.65,0.00011888,2]
[339288909,1727440240352,-500.0,0.00011888,2]
[339288911,1727440240362,-616.1,0.00011888,2]
[339288913,1727440240373,-652.92,0.00011888,2]
[339288915,1727440240383,-500.0,0.00011888,2]
[339288918,1727440240395,-812.02,0.00011888,2]
[339288920,1727440240404,-500.0,0.00011888,2]
[339288922,1727440240414,-500.0,0.00011888,2]
[339288923,1727440240424,-500.0,0.00011888,2]
[339288925,1727440240433,-1075.2,0.00011888,2]
[339288927,1727440240442,-465.13197901,0.00011888,2]
[339288929,1727440240451,-500.0,0.00011888,2]
[339288931,1727440240461,-500.0,0.00011888,2]
[339288933,1727440240469,-500.0,0.00011888,2]
[339288935,1727440240479,-500.0,0.00011888,2]
[339288937,1727440240488,-500.0,0.00011888,2]
[339288939,1727440240497,-940.31,0.00011888,2]
[339288941,1727440240506,-500.0,0.00011888,2]
[339288943,1727440240515,-184.025,0.00011888,2]
[339288945,1727440240524,-500.0,0.00011888,2]
[339288947,1727440240533,-500.0,0.00011888,2]
[339288949,1727440240543,-500.0,0.00011888,2]
[339288951,1727440240551,-500.0,0.00011888,2]
[339288953,1727440240560,-500.0,0.00011888,2]
[339288955,1727440240569,-500.0,0.00011888,2]
[339288957,1727440240579,-500.0,0.00011888,2]
[339288959,1727440240588,-500.0,0.00011888,2]
[339288961,1727440240597,-1024.19,0.00011888,2]
[339288963,1727440240606,-500.0,0.00011888,2]
[339288965,1727440240615,-500.0,0.00011888,2]
[339288967,1727440240627,-500.0,0.00011888,2]
[339288969,1727440240636,-500.0,0.00011888,2]
[339288971,1727440240645,-500.0,0.00011888,2]
[339288973,1727440240655,-500.0,0.00011888,2]
[339288975,1727440240665,-500.0,0.00011888,2]
[339288977,1727440240674,-500.0,0.00011888,2]
[339288979,1727440240683,-500.0,0.00011888,2]
[339288981,1727440240692,-500.0,0.00011888,2]
[339288983,1727440240702,-500.0,0.00011888,2]
[339288985,1727440240711,-500.0,0.00011888,2]
[339288987,1727440240720,-156.184673,0.00011888,2]
[339288989,1727440240730,-500.0,0.00011888,2]
[339288991,1727440240739,-500.0,0.00011888,2]
[339288993,1727440240748,-235.76,0.00011888,2]
[339288995,1727440240758,-778.32,0.00011888,2]
[339288997,1727440240767,-500.0,0.00011888,2]
[339288999,1727440240777,-500.0,0.00011888,2]
[339289001,1727440240786,-500.0,0.00011888,2]
[339289003,1727440240795,-500.0,0.00011888,2]
[339289005,1727440240803,-500.0,0.00011888,2]
[339289007,1727440240812,-500.0,0.00011888,2]
[339289009,1727440240822,-500.0,0.00011888,2]
[339289011,1727440240832,-500.0,0.00011888,2]
[339289013,1727440240841,-500.0,0.00011888,2]
[339289015,1727440240851,-500.0,0.00011888,2]
[339289017,1727440240860,-500.0,0.00011888,2]
[339289019,1727440240869,-500.0,0.00011888,2]
[339289021,1727440240880,-500.0,0.00011888,2]
[339289023,1727440240889,-500.0,0.00011888,2]
[339289025,1727440240899,-730.84,0.00011888,2]
[339289027,1727440240908,-730.84,0.00011888,2]
[339289029,1727440240917,-500.0,0.00011888,2]
[339289031,1727440240926,-1042.09,0.00011888,2]
[339289033,1727440240935,-837.02,0.00011888,2]
[339289035,1727440240945,-837.02,0.00011888,2]
[339289037,1727440240954,-837.02,0.00011888,2]
[339289039,1727440240963,-582.03,0.00011888,2]
[339289041,1727440240973,-582.03,0.00011888,2]
[339289043,1727440240982,-582.03,0.00011888,2]
[339289045,1727440240992,-700.28,0.00011888,2]
[339289047,1727440241002,-700.28,0.00011888,2]
[339289049,1727440241011,-500.0,0.00011888,2]
[339289051,1727440241020,-500.0,0.00011888,2]
[339289053,1727440241030,-500.0,0.00011888,2]
[339289055,1727440241039,-500.0,0.00011888,2]
[339289057,1727440241048,-500.0,0.00011888,2]
[339289059,1727440241058,-731.19,0.00011888,2]
[339289060,1727440241067,-731.19,0.00011888,2]
[339289061,1727440241077,-731.19,0.00011888,2]
[339289062,1727440241087,-624.15,0.00011888,2]
[339289063,1727440241096,-624.15,0.00011888,2]
[339289064,1727440241106,-500.0,0.00011888,2]
[339289065,1727440241115,-1141.88,0.00011888,2]
[339289066,1727440241126,-1141.88,0.00011888,2]
[339289067,1727440241136,-500.0,0.00011888,2]
[339289068,1727440241148,-500.0,0.00011888,2]
[339289069,1727440241158,-500.0,0.00011888,2]
[339289070,1727440241167,-500.0,0.00011888,2]
[339289071,1727440241176,-692.71,0.00011888,2]
[339289072,1727440241187,-500.0,0.00011888,2]
[339289073,1727440241196,-500.0,0.00011888,2]
[339289074,1727440241206,-500.0,0.00011888,2]
[339289075,1727440241216,-500.0,0.00011888,2]
[339289076,1727440241226,-631.39,0.00011888,2]
[339289077,1727440241235,-631.39,0.00011888,2]
[339289078,1727440241245,-500.0,0.00011888,2]
[339289079,1727440241255,-631.39,0.00011888,2]
[339289080,1727440241264,-500.0,0.00011888,2]
[339289081,1727440241274,-540.12776742,0.00011888,2]
[339289082,1727440241283,-500.0,0.00011888,2]
[339289083,1727440241293,-500.0,0.00011888,2]
[339289084,1727440241303,-500.0,0.00011888,2]
[339289085,1727440241312,-500.0,0.00011888,2]
[339289086,1727440241321,-500.0,0.00011888,2]
[339289087,1727440241331,-500.0,0.00011888,2]
[339289088,1727440241340,-500.0,0.00011888,2]
[339289089,1727440241350,-500.0,0.00011888,2]
[339289090,1727440241359,-500.0,0.00011888,2]
[339289091,1727440241369,-681.38,0.00011888,2]
[339289092,1727440241383,-540.33,0.00011888,2]
[339289093,1727440241393,-500.0,0.00011888,2]
[339289094,1727440241402,-500.0,0.00011888,2]
[339289095,1727440241412,-500.0,0.00011888,2]
[339289096,1727440241421,-509.14720969,0.00011888,2]
[339289097,1727440241430,-500.0,0.00011888,2]
[339289098,1727440241440,-3462.08,0.00011888,2]
[339289099,1727440241450,-3462.08,0.00011888,2]
[339289100,1727440241459,-3462.08,0.00011888,2]
[339289101,1727440241469,-500.44,0.00011888,2]
[339289102,1727440241478,-675.37,0.00011888,2]
[339289103,1727440241487,-675.37,0.00011888,2]
[339289104,1727440241497,-500.0,0.00011888,2]
[339289105,1727440241506,-1310.26,0.00011888,2]
[339289106,1727440241516,-500.0,0.00011888,2]
[339289107,1727440241525,-500.0,0.00011888,2]
[339289108,1727440241535,-956.77,0.00011888,2]
[339289109,1727440241545,-956.77,0.00011888,2]
[339289110,1727440241554,-875.71,0.00011888,2]
[339289111,1727440241563,-875.71,0.00011888,2]
[339289112,1727440241572,-679.65,0.00011888,2]
[339289113,1727440241582,-500.0,0.00011888,2]
[339289114,1727440241592,-500.0,0.00011888,2]
[339289115,1727440241601,-563.05,0.00011888,2]
[339289116,1727440241610,-563.05,0.00011888,2]
[339289117,1727440241619,-624.12,0.00011888,2]
[339289118,1727440241630,-991.19,0.00011888,2]
[339289119,1727440241639,-991.19,0.00011888,2]
[339289120,1727440241649,-500.0,0.00011888,2]
[339289121,1727440241658,-1291.46,0.00011888,2]
[339289122,1727440241668,-1291.46,0.00011888,2]
[339289123,1727440241677,-1291.46,0.00011888,2]
[339289124,1727440241686,-500.0,0.00011888,2]
[339289125,1727440241696,-500.0,0.00011888,2]
[339289126,1727440241705,-524.2841818,0.00011888,2]
[339289127,1727440241715,-500.0,0.00011888,2]
[339289128,1727440241724,-500.0,0.00011888,2]
[339289129,1727440241733,-500.0,0.00011888,2]
[339289130,1727440241743,-500.0,0.00011888,2]
[339289131,1727440241752,-859.74,0.00011888,2]
[339289132,1727440241762,-644.11,0.00011888,2]
[339289133,1727440241771,-644.11,0.00011888,2]
[339289134,1727440241781,-500.0,0.00011888,2]
[339289135,1727440241790,-500.0,0.00011888,2]
[339289136,1727440241799,-500.0,0.00011888,2]
[339289137,1727440241808,-727.73,0.00011888,2]
[339289138,1727440241818,-500.0,0.00011888,2]
[339289139,1727440241827,-727.73,0.00011888,2]
[339289140,1727440242018,-500.0,0.00011888,2]
[339289141,1727440242029,-500.0,0.00011888,2]
[339289142,1727440242038,-500.0,0.00011888,2]
[339289143,1727440242049,-500.0,0.00011888,2]
[339289144,1727440242059,-500.0,0.00011888,2]
[339289145,1727440242070,-634.3,0.00011888,2]
[339289146,1727440242081,-634.3,0.00011888,2]
[339289147,1727440242091,-634.3,0.00011888,2]
[339289148,1727440242101,-500.0,0.00011888,2]
[339289149,1727440242112,-500.0,0.00011888,2]
[339289150,1727440242125,-500.0,0.00011888,2]
[339289151,1727440242135,-1182.13,0.00011888,2]
[339289152,1727440242148,-500.0,0.00011888,2]
[339289153,1727440242159,-758.52,0.00011888,2]
[339289154,1727440242170,-1182.13,0.00011888,2]
[339289155,1727440242180,-500.0,0.00011888,2]
[339289156,1727440242190,-835.32,0.00011888,2]
[339289157,1727440242199,-835.32,0.00011888,2]
[339289158,1727440242209,-835.32,0.00011888,2]
[339289159,1727440242219,-543.13,0.00011888,2]
[339289160,1727440242228,-938.67,0.00011888,2]
[339289161,1727440242238,-1653.03,0.00011888,2]
[339289162,1727440242247,-938.67,0.00011888,2]
[339289163,1727440242257,-1653.03,0.00011888,2]
[339289164,1727440242266,-500.0,0.00011888,2]
[339289165,1727440242275,-1653.03,0.00011888,2]
[339289166,1727440242285,-500.0,0.00011888,2]
[339289167,1727440242294,-500.0,0.00011888,2]
[339289168,1727440242304,-500.0,0.00011888,2]
[339289169,1727440242314,-500.0,0.00011888,2]
[339289170,1727440242323,-1063.13,0.00011888,2]
[339289171,1727440242333,-1063.13,0.00011888,2]
[339289172,1727440242342,-1063.13,0.00011888,2]
[339289173,1727440242352,-500.0,0.00011888,2]
[339289174,1727440242362,-500.0,0.00011888,2]
[339289175,1727440242373,-1120.73,0.00011888,2]
[339289176,1727440242382,-686.79,0.00011888,2]
[339289177,1727440242391,-500.0,0.00011888,2]
[339289178,1727440242400,-500.0,0.00011888,2]
[339289179,1727440242409,-500.0,0.00011888,2]
[339289180,1727440242418,-500.0,0.00011888,2]
[339289181,1727440242428,-640.33,0.00011888,2]
[339289182,1727440242437,-640.33,0.00011888,2]
[339289183,1727440242446,-500.0,0.00011888,2]
[339289184,1727440242456,-500.0,0.00011888,2]
[339289185,1727440242466,-500.0,0.00011888,2]
[339289186,1727440242475,-1483.26,0.00011888,2]
[339289187,1727440242485,-225.28274487,0.00011888,2]
[339289188,1727440242494,-1557.07,0.00011888,2]
[339289189,1727440242504,-500.0,0.00011888,2]
[339289190,1727440242513,-500.0,0.00011888,2]
[339289191,1727440242522,-500.0,0.00011888,2]
[339289192,1727440242532,-500.0,0.00011888,2]
[339289193,1727440242541,-500.0,0.00011888,2]
[339289194,1727440242550,-500.0,0.00011888,2]
[339289195,1727440242559,-500.0,0.00011888,2]
[339289196,1727440242569,-874.55,0.00011888,2]
[339289197,1727440242580,-874.55,0.00011888,2]
[339289198,1727440242590,-970.24,0.00011888,2]
[339289199,1727440242600,-1149.43,0.00011888,2]
[339289200,1727440242610,-874.55,0.00011888,2]
[339289201,1727440242622,-500.0,0.00011888,2]
[339289202,1727440242631,-573.74,0.00011888,2]
[339289203,1727440242641,-573.74,0.00011888,2]
[339289204,1727440242650,-573.74,0.00011888,2]
[339289205,1727440242660,-500.0,0.00011888,2]
[339289206,1727440242669,-500.0,0.00011888,2]
[339289207,1727440242679,-500.0,0.00011888,2]
[339289209,1727440242688,-500.0,0.00011888,2]
[339289211,1727440242700,-668.28,0.00011888,2]
[339289212,1727440242709,-668.28,0.00011888,2]
[339289213,1727440242719,-1248.6,0.00011888,2]
[339289214,1727440242728,-803.25,0.00011888,2]
[339289215,1727440242737,-803.25,0.00011888,2]
[339289217,1727440242747,-668.28,0.00011888,2]
[339289218,1727440242756,-1646.9,0.00011888,2]
[339289219,1727440242766,-500.0,0.00011888,2]
[339289220,1727440242775,-748.49,0.00011888,2]
[339289221,1727440242784,-748.49,0.00011888,2]
[339289222,1727440242793,-748.49,0.00011888,2]
[339289223,1727440242802,-500.0,0.00011888,2]
[339289224,1727440242811,-837.58,0.00011888,2]
[339289225,1727440242821,-837.58,0.00011888,2]
[339289226,1727440242830,-500.91427721,0.00011888,2]
[339289227,1727440242839,-941.06,0.00011888,2]
[339289228,1727440242849,-500.0,0.00011888,2]
[339289229,1727440242858,-1155.11,0.00011888,2]
[339289230,1727440242867,-1155.11,0.00011888,2]
[339289231,1727440242879,-1155.11,0.00011888,2]
[339289232,1727440242888,-534.66,0.00011888,2]
[339289233,1727440242898,-562.82,0.00011888,2]
[339289234,1727440242907,-562.82,0.00011888,2]
[339289235,1727440242917,-562.82,0.00011888,2]
[339289236,1727440242928,-915.44,0.00011888,2]
[339289237,1727440242939,-655.71,0.00011888,2]
[339289238,1727440242951,-915.44,0.00011888,2]
[339289239,1727440242962,-655.71,0.00011888,2]
[339289240,1727440242973,-500.0,0.00011888,2]
[339289241,1727440242984,-500.0,0.00011888,2]
[339289242,1727440242995,-655.71,0.00011888,2]
[339289243,1727440243005,-1615.9,0.00011888,2]
[339289244,1727440243017,-528.25,0.00011888,2]
[339289245,1727440243027,-528.25,0.00011888,2]
[339289246,1727440243037,-528.25,0.00011888,2]
[339289247,1727440243047,-500.0,0.00011888,2]
[339289248,1727440243057,-631.37576747,0.00011888,2]
[339289249,1727440243067,-500.0,0.00011888,2]
[339289250,1727440243076,-500.0,0.00011888,2]
[339289251,1727440243086,-512.51831257,0.00011888,2]
[339289252,1727440243096,-524.12,0.00011888,2]
[339289253,1727440243106,-524.12,0.00011888,2]
[339289254,1727440243116,-500.0,0.00011888,2]
[339289255,1727440243127,-299.08243324,0.00011888,2]
[339289256,1727440243142,-733.58,0.00011888,2]
[339289257,1727440243154,-681.43,0.00011888,2]
[339289258,1727440243163,-681.43,0.00011888,2]
[339289259,1727440243174,-681.43,0.00011888,2]
[339289260,1727440243185,-509.99,0.00011888,2]
[339289261,1727440243195,-500.0,0.00011888,2]
[339289262,1727440243205,-1613.54,0.00011888,2]
[339289263,1727440243214,-500.0,0.00011888,2]